[Event "Titled Tuesday Blitz November 07 Early 2023"]
[White "Ruge, Edison"]
[Black "Pujari, Rucha"]
[WhiteFideId "4401000"]
[BlackFideId "5024528"]
[WhiteElo "2265"]
[BlackElo "2481"]
[Result "0-1"]
[Round "4"]
[TimeControl "180+1"]
[Date "2023.11.07"]
[WhiteClock "0:00:00"]
[BlackClock "0:00:04"]
[Board "180"]

1. e4 {[%clk 0:02:57]}  e5 {[%clk 0:02:59]} 2. Nf3 {[%clk 0:02:57]}  Nc6 {[%clk 0:03:00]} 3. Bb5 {[%clk 0:02:57]}  a6 {[%clk 0:03:01]} 4. Ba4 {[%clk 0:02:57]}  Nf6 {[%clk 0:03:01]} 5. Qe2 {[%clk 0:02:57]}  b5 {[%clk 0:03:01]} 6. Bb3 {[%clk 0:02:57]}  Be7 {[%clk 0:03:01]} 7. a4 {[%clk 0:02:57]}  b4 {[%clk 0:02:49]} 8. a5 {[%clk 0:02:56]}  O-O {[%clk 0:02:47]} 9. d3 {[%clk 0:02:55]}  d5 {[%clk 0:02:42]} 10. h3 {[%clk 0:02:55]}  dxe4 {[%clk 0:02:22]} 11. dxe4 {[%clk 0:02:54]}  Nd4 {[%clk 0:02:23]} 12. Nxd4 {[%clk 0:02:53]}  Qxd4 {[%clk 0:02:23]} 13. Nd2 {[%clk 0:02:40]}  Bd7 {[%clk 0:02:09]} 14. O-O {[%clk 0:02:22]}  Bb5 {[%clk 0:02:06]} 15. Bc4 {[%clk 0:02:22]}  Bxc4 {[%clk 0:02:00]} 16. Qxc4 {[%clk 0:02:21]}  Qxc4 {[%clk 0:01:53]} 17. Nxc4 {[%clk 0:02:20]}  Nxe4 {[%clk 0:01:53]} 18. Nxe5 {[%clk 0:02:21]}  Rfe8 {[%clk 0:01:38]} 19. Nd3 {[%clk 0:02:18]}  c5 {[%clk 0:01:35]} 20. f3 {[%clk 0:02:11]}  Ng3 {[%clk 0:01:30]} 21. Rd1 {[%clk 0:02:09]}  c4 {[%clk 0:01:28]} 22. Nf2 {[%clk 0:02:02]}  Bc5 {[%clk 0:01:23]} 23. Bf4 {[%clk 0:02:02]}  Ne2+ {[%clk 0:01:21]} 24. Kf1 {[%clk 0:02:00]}  Nxf4 {[%clk 0:01:21]} 25. Ne4 {[%clk 0:02:00]}  Rac8 {[%clk 0:01:07]} 26. g4 {[%clk 0:01:56]}  Ne6 {[%clk 0:01:00]} 27. Rd5 {[%clk 0:01:54]}  Red8 {[%clk 0:00:56]} 28. Rad1 {[%clk 0:01:52]}  Rxd5 {[%clk 0:00:55]} 29. Rxd5 {[%clk 0:01:53]}  Be7 {[%clk 0:00:43]} 30. Rd7 {[%clk 0:01:45]}  Kf8 {[%clk 0:00:43]} 31. Ra7 {[%clk 0:01:43]}  Rc6 {[%clk 0:00:41]} 32. Ra8+ {[%clk 0:01:36]}  Bd8 {[%clk 0:00:39]} 33. Rb8 {[%clk 0:01:26]}  g6 {[%clk 0:00:35]} 34. g5 {[%clk 0:01:24]}  Kg7 {[%clk 0:00:32]} 35. h4 {[%clk 0:01:24]}  f5 {[%clk 0:00:26]} 36. gxf6+ {[%clk 0:01:18]}  Bxf6 {[%clk 0:00:26]} 37. Rb7+ {[%clk 0:01:17]}  Rc7 {[%clk 0:00:24]} 38. Rb6 {[%clk 0:01:17]}  Re7 {[%clk 0:00:16]} 39. Rxb4 {[%clk 0:01:16]}  Nd4 {[%clk 0:00:12]} 40. Nxf6 {[%clk 0:01:10]}  Kxf6 {[%clk 0:00:11]} 41. Rxc4 {[%clk 0:01:08]}  Ke5 {[%clk 0:00:11]} 42. f4+ {[%clk 0:01:06]}  Kd5 {[%clk 0:00:11]} 43. b3 {[%clk 0:01:05]}  Re4 {[%clk 0:00:09]} 44. Rc7 {[%clk 0:01:04]}  Rxf4+ {[%clk 0:00:10]} 45. Kg2 {[%clk 0:01:04]}  Rxh4 {[%clk 0:00:09]} 46. Ra7 {[%clk 0:01:00]}  Nxc2 {[%clk 0:00:08]} 47. Rxa6 {[%clk 0:00:59]}  Rb4 {[%clk 0:00:09]} 48. Ra7 {[%clk 0:00:56]}  h5 {[%clk 0:00:09]} 49. Rg7 {[%clk 0:00:56]}  h4 {[%clk 0:00:06]} 50. Rxg6 {[%clk 0:00:55]}  Rxb3 {[%clk 0:00:06]} 51. a6 {[%clk 0:00:55]}  Ra3 {[%clk 0:00:05]} 52. Rh6 {[%clk 0:00:54]}  Ra4 {[%clk 0:00:05]} 53. a7 {[%clk 0:00:53]}  Ne3+ {[%clk 0:00:05]} 54. Kf3 {[%clk 0:00:52]}  Nf5 {[%clk 0:00:04]} 55. Rh5 {[%clk 0:00:52]}  Ke5 {[%clk 0:00:04]} 56. Rh7 {[%clk 0:00:46]}  Ra3+ {[%clk 0:00:04]} 57. Kf2 {[%clk 0:00:41]}  Ra2+ {[%clk 0:00:04]} 58. Kf3 {[%clk 0:00:41]}  Ra4 {[%clk 0:00:04]} 59. Kf2 {[%clk 0:00:41]}  Kf4 {[%clk 0:00:04]} 60. Kg2 {[%clk 0:00:38]}  Ra3 {[%clk 0:00:04]} 61. Kh2 {[%clk 0:00:37]}  Kg4 {[%clk 0:00:04]} 62. Rf7 {[%clk 0:00:35]}  Ra2+ {[%clk 0:00:04]} 63. Kg1 {[%clk 0:00:35]}  Ng3 {[%clk 0:00:04]} 64. Rg7+ {[%clk 0:00:31]}  Kh3 {[%clk 0:00:04]} 65. a8=Q {[%clk 0:00:14]}  Rxa8 {[%clk 0:00:03]} 66. Kf2 {[%clk 0:00:14]}  Ra2+ {[%clk 0:00:03]} 67. Kf3 {[%clk 0:00:14]}  Ra3+ {[%clk 0:00:03]} 68. Kf2 {[%clk 0:00:14]}  Ra2+ {[%clk 0:00:02]} 69. Kf3 {[%clk 0:00:14]}  Ra3+ {[%clk 0:00:03]} 70. Kf2 {[%clk 0:00:13]}  Ne4+ {[%clk 0:00:04]} 71. Kf1 {[%clk 0:00:13]}  Kh2 {[%clk 0:00:04]} 72. Rg4 {[%clk 0:00:12]}  Ng3+ {[%clk 0:00:04]} 73. Kf2 {[%clk 0:00:12]}  h3 {[%clk 0:00:04]} 74. Rg7 {[%clk 0:00:10]}  Ne4+ {[%clk 0:00:03]} 75. Kf1 {[%clk 0:00:10]}  Rf3+ {[%clk 0:00:03]} 76. Ke2 {[%clk 0:00:09]}  Rg3 {[%clk 0:00:04]} 77. Re7 {[%clk 0:00:06]}  Ng5 {[%clk 0:00:04]} 78. Kf2 {[%clk 0:00:05]}  Rf3+ {[%clk 0:00:04]} 79. Ke1 {[%clk 0:00:03]}  Kg2 {[%clk 0:00:04]} 80. Re2+ {[%clk 0:00:00]}  Kg3 {[%clk 0:00:04]} 0-1


[Site "https://www.chess.com"]

[Event "Titled Tuesday Blitz November 07 Early 2023"]
[White "Pinto, Daniel"]
[Black "Mishra, Manoj"]
[WhiteFideId "3303144"]
[BlackFideId "5006007"]
[WhiteElo "2474"]
[BlackElo "2194"]
[Result "1-0"]
[Round "4"]
[TimeControl "180+1"]
[Date "2023.11.07"]
[WhiteClock "0:00:20"]
[BlackClock "0:00:00"]
[Board "185"]

1. e4 {[%clk 0:03:00]}  c5 {[%clk 0:02:56]} 2. Nf3 {[%clk 0:03:01]}  d6 {[%clk 0:02:55]} 3. c3 {[%clk 0:03:00]}  Nc6 {[%clk 0:02:44]} 4. d4 {[%clk 0:03:00]}  cxd4 {[%clk 0:02:43]} 5. cxd4 {[%clk 0:03:01]}  Nf6 {[%clk 0:02:43]} 6. Nc3 {[%clk 0:03:01]}  g6 {[%clk 0:02:43]} 7. d5 {[%clk 0:02:33]}  Nb8 {[%clk 0:02:38]} 8. h3 {[%clk 0:02:33]}  Bg7 {[%clk 0:02:37]} 9. Bd3 {[%clk 0:02:12]}  Nbd7 {[%clk 0:02:31]} 10. O-O {[%clk 0:02:11]}  a6 {[%clk 0:02:29]} 11. Re1 {[%clk 0:02:07]}  O-O {[%clk 0:02:26]} 12. Be3 {[%clk 0:02:03]}  b5 {[%clk 0:02:25]} 13. Nd4 {[%clk 0:01:45]}  Bb7 {[%clk 0:02:06]} 14. Rc1 {[%clk 0:01:45]}  Nc5 {[%clk 0:02:03]} 15. Bb1 {[%clk 0:01:45]}  b4 {[%clk 0:02:03]} 16. Na4 {[%clk 0:01:39]}  Ncxe4 {[%clk 0:01:57]} 17. Nc6 {[%clk 0:01:34]}  Bxc6 {[%clk 0:01:15]} 18. dxc6 {[%clk 0:01:35]}  Qa5 {[%clk 0:00:46]} 19. Nb6 {[%clk 0:00:56]}  Rab8 {[%clk 0:00:26]} 20. c7 {[%clk 0:00:56]}  Rxb6 {[%clk 0:00:18]} 21. c8=Q {[%clk 0:00:55]}  Rxc8 {[%clk 0:00:14]} 22. Rxc8+ {[%clk 0:00:56]}  Bf8 {[%clk 0:00:14]} 23. Bh6 {[%clk 0:00:52]}  Nd7 {[%clk 0:00:09]} 24. Bxe4 {[%clk 0:00:40]}  Qe5 {[%clk 0:00:06]} 25. Bc6 {[%clk 0:00:26]}  Rxc6 {[%clk 0:00:04]} 26. Rxf8+ {[%clk 0:00:19]}  Nxf8 {[%clk 0:00:04]} 27. Rxe5 {[%clk 0:00:20]}  dxe5 {[%clk 0:00:03]} 28. Qd8 {[%clk 0:00:21]}  Rc1+ {[%clk 0:00:02]} 29. Kh2 {[%clk 0:00:20]}  Rc8 {[%clk 0:00:00]} 30. Qxc8 {[%clk 0:00:20]} 1-0


[Site "https://www.chess.com"]

[Event "Titled Tuesday Blitz November 07 Early 2023"]
[White "Silvestre, Christian"]
[Black "Savitha Shri B"]
[WhiteFideId "30956269"]
[BlackFideId "35061887"]
[WhiteElo "2164"]
[BlackElo "2460"]
[Result "1-0"]
[Round "4"]
[TimeControl "180+1"]
[Date "2023.11.07"]
[WhiteClock "0:00:09"]
[BlackClock "0:00:04"]
[Board "187"]

1. e4 {[%clk 0:02:58]}  b6 {[%clk 0:02:56]} 2. d4 {[%clk 0:02:53]}  Bb7 {[%clk 0:02:57]} 3. f3 {[%clk 0:02:50]}  g6 {[%clk 0:02:16]} 4. Be3 {[%clk 0:02:44]}  Bg7 {[%clk 0:02:16]} 5. c4 {[%clk 0:02:19]}  d6 {[%clk 0:02:08]} 6. Nc3 {[%clk 0:02:18]}  Nd7 {[%clk 0:02:08]} 7. Qd2 {[%clk 0:02:17]}  e5 {[%clk 0:02:07]} 8. Nge2 {[%clk 0:02:13]}  exd4 {[%clk 0:02:06]} 9. Nxd4 {[%clk 0:02:10]}  Ne7 {[%clk 0:02:06]} 10. Bh6 {[%clk 0:02:05]}  Bf6 {[%clk 0:02:05]} 11. O-O-O {[%clk 0:01:55]}  Nc5 {[%clk 0:02:02]} 12. Kb1 {[%clk 0:01:48]}  Nc6 {[%clk 0:02:00]} 13. Nc2 {[%clk 0:01:28]}  Ne5 {[%clk 0:01:46]} 14. Nd5 {[%clk 0:01:21]}  Bxd5 {[%clk 0:01:32]} 15. cxd5 {[%clk 0:01:21]}  Qd7 {[%clk 0:01:27]} 16. Nd4 {[%clk 0:01:19]}  a6 {[%clk 0:01:25]} 17. Be2 {[%clk 0:01:07]}  b5 {[%clk 0:01:14]} 18. Rc1 {[%clk 0:01:02]}  Rb8 {[%clk 0:01:09]} 19. Bg5 {[%clk 0:00:53]}  Bxg5 {[%clk 0:01:07]} 20. Qxg5 {[%clk 0:00:54]}  O-O {[%clk 0:01:07]} 21. h4 {[%clk 0:00:45]}  Nc4 {[%clk 0:01:06]} 22. Bxc4 {[%clk 0:00:28]}  bxc4 {[%clk 0:01:06]} 23. Rxc4 {[%clk 0:00:28]}  a5 {[%clk 0:00:56]} 24. h5 {[%clk 0:00:27]}  f6 {[%clk 0:00:55]} 25. Qg3 {[%clk 0:00:22]}  g5 {[%clk 0:00:56]} 26. Nf5 {[%clk 0:00:19]}  Qb5 {[%clk 0:00:52]} 27. Rc2 {[%clk 0:00:16]}  Qd3 {[%clk 0:00:44]} 28. f4 {[%clk 0:00:13]}  Qxe4 {[%clk 0:00:42]} 29. Nh6+ {[%clk 0:00:10]}  Kh8 {[%clk 0:00:42]} 30. fxg5 {[%clk 0:00:10]}  Na4 {[%clk 0:00:41]} 31. gxf6 {[%clk 0:00:09]}  Rxb2+ {[%clk 0:00:41]} 32. Ka1 {[%clk 0:00:08]}  Rxa2+ {[%clk 0:00:19]} 33. Rxa2 {[%clk 0:00:08]}  Qd4+ {[%clk 0:00:19]} 34. Kb1 {[%clk 0:00:07]}  Rb8+ {[%clk 0:00:18]} 35. Kc1 {[%clk 0:00:08]}  Qc4+ {[%clk 0:00:04]} 36. Rc2 {[%clk 0:00:09]} 1-0


[Site "https://www.chess.com"]

[Event "Titled Tuesday Blitz November 07 Early 2023"]
[White "Czerw, Dawid"]
[Black "knightinshiningarmour16"]
[WhiteFideId "1145746"]
[WhiteElo "2459"]
[BlackElo "2170"]
[Result "1-0"]
[Round "4"]
[TimeControl "180+1"]
[Date "2023.11.07"]
[WhiteClock "0:00:12"]
[BlackClock "0:00:04"]
[Board "188"]

1. e4 {[%clk 0:03:00]}  c6 {[%clk 0:02:59]} 2. Nc3 {[%clk 0:03:00]}  d5 {[%clk 0:02:58]} 3. Qf3 {[%clk 0:03:01]}  dxe4 {[%clk 0:02:51]} 4. Nxe4 {[%clk 0:03:02]}  Nf6 {[%clk 0:02:50]} 5. Bc4 {[%clk 0:03:02]}  e6 {[%clk 0:02:45]} 6. Ne2 {[%clk 0:03:01]}  Nbd7 {[%clk 0:02:41]} 7. d4 {[%clk 0:03:01]}  Nxe4 {[%clk 0:02:38]} 8. Qxe4 {[%clk 0:03:01]}  Nf6 {[%clk 0:02:39]} 9. Qf3 {[%clk 0:03:01]}  Be7 {[%clk 0:02:38]} 10. Bd2 {[%clk 0:03:02]}  Qb6 {[%clk 0:02:31]} 11. O-O-O {[%clk 0:03:00]}  Bd7 {[%clk 0:02:28]} 12. g4 {[%clk 0:02:59]}  Rf8 {[%clk 0:02:15]} 13. g5 {[%clk 0:02:48]}  Nd5 {[%clk 0:02:14]} 14. Kb1 {[%clk 0:02:45]}  O-O-O {[%clk 0:02:13]} 15. h4 {[%clk 0:02:38]}  Nb4 {[%clk 0:02:00]} 16. c3 {[%clk 0:02:23]}  Nd5 {[%clk 0:01:58]} 17. Bd3 {[%clk 0:02:21]}  g6 {[%clk 0:01:53]} 18. h5 {[%clk 0:02:20]}  c5 {[%clk 0:01:49]} 19. hxg6 {[%clk 0:02:16]}  hxg6 {[%clk 0:01:50]} 20. Rh7 {[%clk 0:02:14]}  Bc6 {[%clk 0:01:50]} 21. Be4 {[%clk 0:02:01]}  f5 {[%clk 0:01:38]} 22. Bxd5 {[%clk 0:01:31]}  Bxd5 {[%clk 0:01:34]} 23. Qh3 {[%clk 0:01:25]}  Qa6 {[%clk 0:01:13]} 24. Nc1 {[%clk 0:01:20]}  Bd6 {[%clk 0:01:10]} 25. dxc5 {[%clk 0:00:58]}  Bxc5 {[%clk 0:01:08]} 26. Qg3 {[%clk 0:00:58]}  Bd6 {[%clk 0:00:53]} 27. Bf4 {[%clk 0:00:56]}  e5 {[%clk 0:00:43]} 28. Bxe5 {[%clk 0:00:47]}  Be4+ {[%clk 0:00:40]} 29. Ka1 {[%clk 0:00:45]}  Bxe5 {[%clk 0:00:37]} 30. Qxe5 {[%clk 0:00:45]}  Qc6 {[%clk 0:00:31]} 31. Rxd8+ {[%clk 0:00:29]}  Rxd8 {[%clk 0:00:29]} 32. Rh8 {[%clk 0:00:29]}  Rxh8 {[%clk 0:00:18]} 33. Qxh8+ {[%clk 0:00:29]}  Kc7 {[%clk 0:00:18]} 34. Qg7+ {[%clk 0:00:29]}  Kb6 {[%clk 0:00:19]} 35. Nb3 {[%clk 0:00:18]}  Qd6 {[%clk 0:00:17]} 36. Qd4+ {[%clk 0:00:17]}  Qxd4 {[%clk 0:00:17]} 37. Nxd4 {[%clk 0:00:18]}  Kc7 {[%clk 0:00:16]} 38. f4 {[%clk 0:00:16]}  Kd7 {[%clk 0:00:15]} 39. b3 {[%clk 0:00:13]}  a6 {[%clk 0:00:15]} 40. Kb2 {[%clk 0:00:12]}  Kd6 {[%clk 0:00:15]} 41. c4 {[%clk 0:00:11]}  Kc5 {[%clk 0:00:16]} 42. Kc3 {[%clk 0:00:09]}  b5 {[%clk 0:00:14]} 43. b4+ {[%clk 0:00:08]}  Kd6 {[%clk 0:00:13]} 44. cxb5 {[%clk 0:00:08]}  axb5 {[%clk 0:00:14]} 45. Nxb5+ {[%clk 0:00:09]}  Kc6 {[%clk 0:00:14]} 46. Nd4+ {[%clk 0:00:09]}  Kd6 {[%clk 0:00:14]} 47. a4 {[%clk 0:00:09]}  Bb1 {[%clk 0:00:12]} 48. a5 {[%clk 0:00:09]}  Be4 {[%clk 0:00:12]} 49. Kc4 {[%clk 0:00:08]}  Kc7 {[%clk 0:00:12]} 50. Kc5 {[%clk 0:00:08]}  Kb7 {[%clk 0:00:12]} 51. b5 {[%clk 0:00:09]}  Ka7 {[%clk 0:00:12]} 52. Ne6 {[%clk 0:00:09]}  Bf3 {[%clk 0:00:11]} 53. Nf8 {[%clk 0:00:09]}  Bh5 {[%clk 0:00:10]} 54. Ne6 {[%clk 0:00:07]}  Bf3 {[%clk 0:00:09]} 55. Nd4 {[%clk 0:00:08]}  Be4 {[%clk 0:00:09]} 56. Kd6 {[%clk 0:00:08]}  Bd3 {[%clk 0:00:09]} 57. Ke5 {[%clk 0:00:09]}  Bxb5 {[%clk 0:00:09]} 58. Nxb5+ {[%clk 0:00:09]}  Ka6 {[%clk 0:00:09]} 59. Nd6 {[%clk 0:00:09]}  Kxa5 {[%clk 0:00:10]} 60. Nxf5 {[%clk 0:00:10]}  Kb4 {[%clk 0:00:11]} 61. Ne7 {[%clk 0:00:10]}  Kc3 {[%clk 0:00:11]} 62. Nxg6 {[%clk 0:00:11]}  Kd3 {[%clk 0:00:12]} 63. f5 {[%clk 0:00:11]}  Ke2 {[%clk 0:00:04]} 64. f6 {[%clk 0:00:12]} 1-0


[Site "https://www.chess.com"]

[Event "Titled Tuesday Blitz November 07 Early 2023"]
[White "Mazurkiewicz, Michal"]
[Black "Modric, Nesa"]
[WhiteFideId "1124943"]
[BlackFideId "922579"]
[WhiteElo "2458"]
[BlackElo "2157"]
[Result "1-0"]
[Round "4"]
[TimeControl "180+1"]
[Date "2023.11.07"]
[WhiteClock "0:00:06"]
[BlackClock "0:00:02"]
[Board "189"]

1. e4 {[%clk 0:02:58]}  d5 {[%clk 0:03:00]} 2. exd5 {[%clk 0:02:58]}  Qxd5 {[%clk 0:03:01]} 3. d3 {[%clk 0:02:59]}  Nf6 {[%clk 0:02:58]} 4. Nc3 {[%clk 0:02:59]}  Qd8 {[%clk 0:02:54]} 5. g3 {[%clk 0:02:59]}  c6 {[%clk 0:02:54]} 6. Nf3 {[%clk 0:03:00]}  Bg4 {[%clk 0:02:54]} 7. h3 {[%clk 0:03:00]}  Bh5 {[%clk 0:02:48]} 8. Bg2 {[%clk 0:02:57]}  e6 {[%clk 0:02:47]} 9. O-O {[%clk 0:02:54]}  Bd6 {[%clk 0:02:47]} 10. Re1 {[%clk 0:02:54]}  O-O {[%clk 0:02:46]} 11. g4 {[%clk 0:02:53]}  Bg6 {[%clk 0:02:46]} 12. Ne5 {[%clk 0:02:54]}  Nbd7 {[%clk 0:02:28]} 13. Nxg6 {[%clk 0:02:54]}  hxg6 {[%clk 0:02:28]} 14. h4 {[%clk 0:02:39]}  Nd5 {[%clk 0:02:24]} 15. Ne4 {[%clk 0:02:38]}  Bf4 {[%clk 0:02:10]} 16. h5 {[%clk 0:02:38]}  Qh4 {[%clk 0:01:54]} 17. Qf3 {[%clk 0:02:29]}  g5 {[%clk 0:01:35]} 18. Ng3 {[%clk 0:01:15]}  Ne5 {[%clk 0:01:22]} 19. Qe2 {[%clk 0:00:14]}  Nxg4 {[%clk 0:01:21]} 20. c4 {[%clk 0:00:09]}  Qh2+ {[%clk 0:01:09]} 21. Kf1 {[%clk 0:00:09]}  Bxc1 {[%clk 0:01:02]} 22. cxd5 {[%clk 0:00:10]}  Qxh5 {[%clk 0:00:40]} 23. Raxc1 {[%clk 0:00:07]}  exd5 {[%clk 0:00:34]} 24. Bf3 {[%clk 0:00:07]}  Nh2+ {[%clk 0:00:31]} 25. Kg2 {[%clk 0:00:08]}  g4 {[%clk 0:00:25]} 26. Bxd5 {[%clk 0:00:07]}  Qh3+ {[%clk 0:00:24]} 27. Kg1 {[%clk 0:00:05]}  Rfe8 {[%clk 0:00:15]} 28. Qxe8+ {[%clk 0:00:05]}  Rxe8 {[%clk 0:00:14]} 29. Rxe8+ {[%clk 0:00:06]}  Kh7 {[%clk 0:00:15]} 30. Be4+ {[%clk 0:00:06]}  g6 {[%clk 0:00:15]} 31. Bg2 {[%clk 0:00:06]}  Nf3+ {[%clk 0:00:15]} 32. Kf1 {[%clk 0:00:07]}  Qh4 {[%clk 0:00:13]} 33. Ke2 {[%clk 0:00:07]}  Qf6 {[%clk 0:00:12]} 34. Rh1+ {[%clk 0:00:07]}  Kg7 {[%clk 0:00:13]} 35. Rhh8 {[%clk 0:00:07]}  Qxb2+ {[%clk 0:00:12]} 36. Ke3 {[%clk 0:00:07]}  Qd4+ {[%clk 0:00:10]} 37. Ke2 {[%clk 0:00:08]}  Qb2+ {[%clk 0:00:10]} 38. Ke3 {[%clk 0:00:06]}  Qc1+ {[%clk 0:00:10]} 39. Ke4 {[%clk 0:00:06]}  f5+ {[%clk 0:00:10]} 40. Nxf5+ {[%clk 0:00:05]}  gxf5+ {[%clk 0:00:10]} 41. Kxf5 {[%clk 0:00:06]}  Qg5+ {[%clk 0:00:09]} 42. Ke6 {[%clk 0:00:07]}  Qf6+ {[%clk 0:00:09]} 43. Kd7 {[%clk 0:00:07]}  Ne5+ {[%clk 0:00:07]} 44. Kc7 {[%clk 0:00:07]}  Qf7+ {[%clk 0:00:06]} 45. Kb8 {[%clk 0:00:07]}  Nd7+ {[%clk 0:00:06]} 46. Ka8 {[%clk 0:00:07]}  Nb6+ {[%clk 0:00:06]} 47. Kxa7 {[%clk 0:00:08]}  Nd7 {[%clk 0:00:05]} 48. Rhg8+ {[%clk 0:00:08]}  Kf6 {[%clk 0:00:04]} 49. Kxb7 {[%clk 0:00:08]}  Qxa2 {[%clk 0:00:03]} 50. Kxc6 {[%clk 0:00:06]}  Ne5+ {[%clk 0:00:03]} 51. Rxe5 {[%clk 0:00:06]}  Kxe5 {[%clk 0:00:03]} 52. Re8+ {[%clk 0:00:06]}  Kf6 {[%clk 0:00:03]} 53. Re4 {[%clk 0:00:06]}  Qa6+ {[%clk 0:00:02]} 54. Kd5 {[%clk 0:00:06]}  Qxd3+ {[%clk 0:00:03]} 55. Rd4 {[%clk 0:00:06]}  Qb3+ {[%clk 0:00:03]} 56. Kc5 {[%clk 0:00:06]}  Qb2 {[%clk 0:00:04]} 57. Be4 {[%clk 0:00:06]}  Kg5 {[%clk 0:00:05]} 58. Bd5 {[%clk 0:00:06]}  Qc1+ {[%clk 0:00:05]} 59. Bc4 {[%clk 0:00:07]}  Qb2 {[%clk 0:00:06]} 60. Rd5+ {[%clk 0:00:07]}  Kh4 {[%clk 0:00:06]} 61. Rf5 {[%clk 0:00:07]}  Qa3+ {[%clk 0:00:05]} 62. Kd5 {[%clk 0:00:07]}  Qf3+ {[%clk 0:00:04]} 63. Rxf3 {[%clk 0:00:06]}  gxf3 {[%clk 0:00:04]} 64. Ke4 {[%clk 0:00:07]}  Kg4 {[%clk 0:00:05]} 65. Bd5 {[%clk 0:00:05]}  Kg5 {[%clk 0:00:02]} 66. Kxf3 {[%clk 0:00:06]} 1-0


[Site "https://www.chess.com"]

[Event "Titled Tuesday Blitz November 07 Early 2023"]
[White "Herman, Daniel"]
[Black "Mirza, Diana"]
[WhiteFideId "30935008"]
[BlackFideId "2503999"]
[WhiteElo "2443"]
[BlackElo "1974"]
[Result "1/2-1/2"]
[Round "4"]
[TimeControl "180+1"]
[Date "2023.11.07"]
[WhiteClock "0:00:09"]
[BlackClock "0:00:11"]
[Board "195"]

1. d4 {[%clk 0:03:00]}  Nf6 {[%clk 0:02:59]} 2. c4 {[%clk 0:03:01]}  g6 {[%clk 0:02:59]} 3. Nc3 {[%clk 0:03:01]}  Bg7 {[%clk 0:03:00]} 4. e4 {[%clk 0:03:01]}  O-O {[%clk 0:03:01]} 5. Nf3 {[%clk 0:03:02]}  d6 {[%clk 0:03:02]} 6. h3 {[%clk 0:03:02]}  Nc6 {[%clk 0:03:02]} 7. Be3 {[%clk 0:02:58]}  e5 {[%clk 0:03:02]} 8. d5 {[%clk 0:02:58]}  Ne7 {[%clk 0:03:02]} 9. g4 {[%clk 0:02:58]}  Nd7 {[%clk 0:02:54]} 10. Bd3 {[%clk 0:02:55]}  f5 {[%clk 0:02:53]} 11. gxf5 {[%clk 0:02:54]}  gxf5 {[%clk 0:02:54]} 12. exf5 {[%clk 0:02:46]}  Nxf5 {[%clk 0:02:52]} 13. Bg5 {[%clk 0:02:21]}  Qe8 {[%clk 0:02:46]} 14. Qc2 {[%clk 0:02:07]}  Nc5 {[%clk 0:02:38]} 15. Ne4 {[%clk 0:01:42]}  Nxd3+ {[%clk 0:02:31]} 16. Qxd3 {[%clk 0:01:42]}  Qh5 {[%clk 0:02:24]} 17. O-O-O {[%clk 0:01:36]}  Nd4 {[%clk 0:02:08]} 18. Nxd4 {[%clk 0:01:35]}  exd4 {[%clk 0:02:09]} 19. Rhg1 {[%clk 0:01:25]}  Bf5 {[%clk 0:01:13]} 20. f3 {[%clk 0:00:03]}  Qxh3 {[%clk 0:00:56]} 21. Kb1 {[%clk 0:00:03]}  Rae8 {[%clk 0:00:51]} 22. Bf6 {[%clk 0:00:03]}  Rf7 {[%clk 0:00:43]} 23. Bxg7 {[%clk 0:00:03]}  Rxg7 {[%clk 0:00:43]} 24. Qxd4 {[%clk 0:00:03]}  Re5 {[%clk 0:00:28]} 25. Ka1 {[%clk 0:00:03]}  Qxf3 {[%clk 0:00:20]} 26. Nf6+ {[%clk 0:00:02]}  Kf7 {[%clk 0:00:20]} 27. Rdf1 {[%clk 0:00:03]}  Rxg1 {[%clk 0:00:17]} 28. Qxg1 {[%clk 0:00:03]}  Qe3 {[%clk 0:00:12]} 29. Nxh7 {[%clk 0:00:04]}  Qxg1 {[%clk 0:00:11]} 30. Rxg1 {[%clk 0:00:05]}  Bxh7 {[%clk 0:00:12]} 31. a3 {[%clk 0:00:04]}  Bf5 {[%clk 0:00:12]} 32. Rf1 {[%clk 0:00:04]}  Kf6 {[%clk 0:00:12]} 33. Rf2 {[%clk 0:00:04]}  Re4 {[%clk 0:00:12]} 34. Ka2 {[%clk 0:00:04]}  Rxc4 {[%clk 0:00:12]} 35. b4 {[%clk 0:00:05]}  Rd4 {[%clk 0:00:13]} 36. Rg2 {[%clk 0:00:04]}  Rxd5 {[%clk 0:00:12]} 37. Rg8 {[%clk 0:00:05]}  Be6 {[%clk 0:00:11]} 38. Rb8 {[%clk 0:00:05]}  Rd2+ {[%clk 0:00:11]} 39. Kb1 {[%clk 0:00:05]}  Rh2 {[%clk 0:00:10]} 40. Rxb7 {[%clk 0:00:05]}  c5 {[%clk 0:00:10]} 41. Rxa7 {[%clk 0:00:05]}  cxb4 {[%clk 0:00:11]} 42. axb4 {[%clk 0:00:06]}  Ke5 {[%clk 0:00:11]} 43. Rb7 {[%clk 0:00:06]}  Bc4 {[%clk 0:00:11]} 44. b5 {[%clk 0:00:06]}  Bd3+ {[%clk 0:00:10]} 45. Kc1 {[%clk 0:00:06]}  Rc2+ {[%clk 0:00:10]} 46. Kd1 {[%clk 0:00:06]}  Rb2 {[%clk 0:00:10]} 47. b6 {[%clk 0:00:07]}  Kd5 {[%clk 0:00:11]} 48. Rb8 {[%clk 0:00:07]}  Kc6 {[%clk 0:00:11]} 49. Rc8+ {[%clk 0:00:07]}  Kb7 {[%clk 0:00:11]} 50. Rd8 {[%clk 0:00:07]}  Kc6 {[%clk 0:00:11]} 51. Rc8+ {[%clk 0:00:07]}  Kd7 {[%clk 0:00:11]} 52. Rc7+ {[%clk 0:00:07]}  Kd8 {[%clk 0:00:11]} 53. Rb7 {[%clk 0:00:08]}  Kc8 {[%clk 0:00:11]} 54. Rc7+ {[%clk 0:00:08]}  Kb8 {[%clk 0:00:12]} 55. Rc6 {[%clk 0:00:08]}  Kb7 {[%clk 0:00:11]} 56. Rxd6 {[%clk 0:00:08]}  Bb5 {[%clk 0:00:11]} 57. Kc1 {[%clk 0:00:08]}  Rh2 {[%clk 0:00:10]} 58. Kd1 {[%clk 0:00:08]}  Rb2 {[%clk 0:00:09]} 59. Kc1 {[%clk 0:00:08]}  Rb4 {[%clk 0:00:10]} 60. Kc2 {[%clk 0:00:08]}  Ka6 {[%clk 0:00:10]} 61. Kc3 {[%clk 0:00:09]}  Rc4+ {[%clk 0:00:09]} 62. Kb3 {[%clk 0:00:09]}  Rc6 {[%clk 0:00:10]} 63. Rxc6 {[%clk 0:00:09]}  Bxc6 {[%clk 0:00:11]} 64. Kb4 {[%clk 0:00:09]}  Kxb6 {[%clk 0:00:11]} 1/2-1/2


[Site "https://www.chess.com"]